Cogmind - Beta 10.2 @@@ ROGUE MODE // 2021.02.15 @ 19:16:04 Player: b.J.O. Result: Destroyed by G-34 Mercenary with Small Laser Performance ------------- Evolutions (0) 0 Regions Visited (2) 400 Robots Destroyed (3) 15 Value Destroyed (23) 23 Prototype IDs (0) 0 Alien Tech Used (0) 0 Bonus (0) 0 TOTAL SCORE: 438 Bonus ------- None Cogmind --------- Core Integrity 0/250 Matter 300/300 Energy 75/100 System Corruption 0% Temperature Cool (38) Movement Rolling (100) Location -10/Mines Parts ------- > --- POWER (1) -------- (None) > --- PROPULSION (2) --- Compact Wheel > --- UTILITY (2) ------ Small Storage Unit Visual Processing Unit > --- WEAPON (2) ------- Mining Laser Flail > --- INVENTORY (6) ---- Light Nuclear Core Compact Wheel Experimental Sensor Array Particle Cannon Assault Rifle Flail Peak State ------------ > --- POWER ------------ Light Ion Engine > --- PROPULSION ------- Compact Wheel Compact Wheel > --- UTILITY ---------- Small Storage Unit Visual Processing Unit > --- WEAPON ----------- Light Assault Rifle Flail > --- INVENTORY -------- Light Nuclear Core Compact Wheel Compact Wheel Particle Cannon Assault Rifle Flail [Rating: 10] Favorites ----------- Power Light Ion Engine Engine Light Ion Engine Propulsion Compact Wheel Wheel Compact Wheel Utility Small Storage Unit Storage Small Storage Unit Processor Visual Processing Unit Weapon Flail Energy Gun Medium Laser Ballistic Gun Light Assault Rifle Special Weapon Mining Laser Impact Weapon Flail Build | -11 -10 -10 ------- Run | Scr Mat Min Slots Evolved . | . . . Power . | . . . Propulsion . | . . . Utility . | . . . Weapon . | . . . Parts Attached 12 | 6 5 1 Power 1 | 1 . . Engine 1 | 1 . . Core . | . . . Reactor . | . . . Propulsion 5 | 2 2 1 Treads . | . . . Leg . | . . . Wheel 5 | 2 2 1 Hover . | . . . Flight . | . . . Utility 2 | 1 1 . Device . | . . . Storage 1 | 1 . . Processor 1 | . 1 . Hackware . | . . . Protection . | . . . Artifact . | . . . Weapon 4 | 2 2 . Energy Gun 1 | 1 . . Energy Cannon . | . . . Ballistic Gun 1 | 1 . . Ballistic Cannon . | . . . Launcher . | . . . Special Weapon 1 | . 1 . Impact Weapon 1 | . 1 . Slashing Weapon . | . . . Piercing Weapon . | . . . Special Melee Weapon . | . . . Unidentified Prototypes . | . . . Parts Lost 4 | . 2 2 Power 1 | . . 1 Propulsion 3 | . 2 1 Utility . | . . . Weapon . | . . . Highest Loss Streak 2 | . 2 2 Average Slot Usage (%) 96 | . 86 99 Engine 13 | . 14 13 Wheel 26 | . 24 27 Storage 14 | . 14 14 Processor 12 | . 5 14 Energy Gun 1 | . 8 . Ballistic Gun 2 | . 13 . Special Weapon 10 | . . 14 Impact Weapon 12 | . 5 14 Naked Turns . | . . . Heaviest Build 10 | 10 10 10 Greatest Support 32 | 26 32 32 Greatest Overweight (x) 3 | . 3 . Average Overweight (x) . | . . . Largest Inventory Capacity 6 | 6 6 6 Average Capacity 5 | 5 6 6 Most Carried 6 | 4 6 6 Average Carried 5 | 2 3 5 Final Capacity 6 | 6 6 6 Final Carried 6 | 2 6 6 Class Distribution -------------------- 100% | Mutant Dominant Class ---------------- Mutant | -10/Materials Mutant | -10/Mines Resources | -11 -10 -10 ----------- Run | Scr Mat Min Matter Collected 321 | 266 35 20 Remotely . | . . . Salvage Created 148 | 80 11 57 Parts 5 | . 5 . Haulers Intercepted . | . . . Recyclers Shooed . | . . . Parts Field Recycled . | . . . Retrieved Matter . | . . . Parts Self-Destructed . | . . . Prevented . | . . . Kills | -11 -10 -10 ------- Run | Scr Mat Min Combat Hostiles Destroyed 2 | . . 2 Melee 2 | . . 2 Classes Destroyed 4 | 1 1 2 Worker 1 | . . 1 Recycler 1 | 1 . . Watcher 1 | . 1 . Assembled 2 | . . 2 Best Kill Streak 1 | 1 1 1 Combat Bots Only 1 | . . 1 Max Kills in Single Turn 1 | 1 1 1 Gunslinging . | . . . Exploded . | . . . Melee 1 | . . 1 Uniques/NPCs Destroyed . | . . . Combat | -11 -10 -10 -------- Run | Scr Mat Min Damage Taken 645 | . 452 193 Core 250 | . 175 75 Absorbed by Shields . | . . . Core Remaining (%) 100 | 100 . . Volleys Fired 24 | 6 3 15 Largest 2 | 2 2 1 Hottest 100 | 70 70 100 Shots Fired 32 | 12 5 15 Gun 17 | 12 5 . Cannon . | . . . Launcher . | . . . Special 15 | . . 15 Kinetic 9 | 6 3 . Thermal 23 | 6 2 15 Explosive . | . . . Electromagnetic . | . . . Robot Hit Streak 8 | 4 8 . Robot Miss Streak 2 | 2 1 . Penetration Max . | . . . Secondary Targets . | . . . Shots Hit Robots 18 | 7 6 5 Core Hits 5 | 2 1 2 Critical Hits . | . . . Critical Kills . | . . . Critical Parts Destroyed . | . . . Melee Attacks 8 | . 2 6 Impact 8 | . 2 6 Slashing . | . . . Piercing . | . . . Sneak Attacks 2 | . . 2 Combat Hostiles . | . . . Follow-up Attacks . | . . . Damage Inflicted 367 | 72 78 217 Guns 119 | 72 47 . Cannons . | . . . Explosions . | . . . Melee 248 | . 31 217 Ramming . | . . . Kinetic 45 | 23 22 . Thermal 74 | 49 25 . Explosive . | . . . Electromagnetic . | . . . Impact 248 | . 31 217 Slashing . | . . . Piercing . | . . . Highest Corruption . | . . . Average Corruption . | . . . Corruption Purged . | . . . Overload Shots . | . . . Overflow Damage 62 | . . 62 Projectiles . | . . . Explosions . | . . . Melee 62 | . . 62 Knockbacks 2 | . . 2 Impact 2 | . . 2 Kinetic . | . . . Secondary . | . . . Self-Inflicted Damage . | . . . Shots . | . . . Rammed . | . . . Targets Rammed . | . . . Kicked . | . . . Crushed . | . . . Highest Temperature 70 | 70 45 40 Average Temperature 18 | 26 24 16 Received Heat Transfer 342 | . 264 78 Siege Activations . | . . . Robots Corrupted . | . . . Combat Hostiles . | . . . Parts Fried . | . . . Impact Corruptions 2 | . . 2 Robots Melted . | . . . Combat Hostiles . | . . . Parts Melted 1 | 1 . . Heat Transferred 222 | 148 74 . Parts Sabotaged . | . . . Parts Stolen . | . . . Parts Stripped . | . . . Power Chain Reactions . | . . . Missiles Intercepted . | . . . Alert | -11 -10 -10 ------- Run | Scr Mat Min Peak Influence 22 | 5 22 13 Initial 8 | . 3 8 Average 8 | 1 10 8 Maximum Alert Level . | . . . Low Security (%) 100 | 100 100 100 Level 1 . | . . . Level 2 . | . . . Level 3 . | . . . Level 4 . | . . . Level 5 . | . . . High Security . | . . . Max Security . | . . . Squads Dispatched . | . . . Investigation . | . . . Extermination . | . . . Reinforcement . | . . . Assault . | . . . Garrison . | . . . Intercept . | . . . Construction Impeded . | . . . Haulers Reinforced . | . . . Stealth | -11 -10 -10 --------- Run | Scr Mat Min Distress Signals 1 | . 1 . Communications Jammed . | . . . Distress Signals . | . . . Times Spotted 15 | . 8 7 Peak Tracking Total 7 | . 7 4 Tactical Retreats 2 | . . 2 Traps | -11 -10 -10 ------- Run | Scr Mat Min Traps Triggered . | . . . Indirectly . | . . . Trap Hack Attempts . | . . . Triggered . | . . . Disarmed . | . . . Reprogrammed . | . . . Reused . | . . . Traps Extracted . | . . . Installed . | . . . Triggered . | . . . Machines | -11 -10 -10 ---------- Run | Scr Mat Min Machines Disabled . | . . . Max in Single Turn . | . . . Machines Sabotaged . | . . . Garrisons Compromised . | . . . Overloaded Fab Kills . | . . . Fab Network Shutdowns . | . . . Hacking | -11 -10 -10 --------- Run | Scr Mat Min Machines Accessed 1 | . 1 . Terminals 1 | . 1 . Fabricators . | . . . Repair Stations . | . . . Recycling Units . | . . . Scanalyzers . | . . . Garrison Access . | . . . Total Hacks 3 | . 3 . Successful 1 | . 1 . Failed 2 | . 2 . Catastrophic . | . . . Database Lockouts . | . . . Manual . | . . . Terminals 3 | . 3 . Fabricators . | . . . Repair Stations . | . . . Recycling Units . | . . . Scanalyzers . | . . . Garrison Access . | . . . Terminal Hacks 1 | . 1 . Locate Traps 1 | . 1 . Fabricator Hacks . | . . . Repair Station Hacks . | . . . Recycling Unit Hacks . | . . . Scanalyzer . | . . . Garrison Access Hacks . | . . . Unauthorized Hacks . | . . . Terminals . | . . . Fabricators . | . . . Repair Stations . | . . . Recycling Units . | . . . Scanalyzers . | . . . Garrison Access . | . . . Data Cores Recovered . | . . . Used . | . . . Hacking Detections 1 | . 1 . Full Trace Events 1 | . 1 . Feedback Events . | . . . Feedback Blocked . | . . . Robot Schematics Acquired . | . . . Robots Built . | . . . Matter . | . . . Time . | . . . Total Robot Build Rating . | . . . Part Schematics Acquired . | . . . Parts Built . | . . . Matter . | . . . Time . | . . . Total Part Build Rating . | . . . Parts Repaired . | . . . Time . | . . . Parts Recycled . | . . . Recycled Matter . | . . . Retrieved Matter . | . . . Retrieved Components . | . . . Parts Scanalyzed . | . . . Part Schematics Acquired . | . . . Parts Damaged . | . . . Bothacking | -11 -10 -10 ------------ Run | Scr Mat Min Used RIF Installer . | . . . Robots Hacked . | . . . Non-combat . | . . . Combat . | . . . Robot Hacks Applied . | . . . Relay Couplers Released . | . . . Robots Rewired . | . . . Allies Hacked . | . . . Hacks Repelled . | . . . Allies | -11 -10 -10 -------- Run | Scr Mat Min Total Allies . | . . . Largest Group . | . . . Highest-Rated Group . | . . . Highest-Rated Ally . | . . . Total Orders . | . . . Ally Attacks . | . . . Total Damage . | . . . Kills . | . . . Allies Corrupted . | . . . Allies Melted . | . . . Intel | -11 -10 -10 ------- Run | Scr Mat Min Robot Analysis Total . | . . . Derelict Logs Recovered 1 | . . 1 Drone Launches . | . . . Drone Recoveries . | . . . Exploration | -11 -10 -10 ------------- Run | Scr Mat Min Turns Passed 721 | 67 145 509 Spaces Moved 591 | 41 125 425 Core 11 | 8 3 . Treads . | . . . Legs . | . . . Wheels 580 | 33 122 425 Hover . | . . . Flight . | . . . Fastest Speed 50 | 50 80 100 Average Speed 97 | 89 93 100 Slowest Speed 200 | 100 200 100 Overloaded Moves . | . . . Propulsion Burnouts . | . . . Robots Hopped . | . . . Cave-ins Triggered . | . . . Exploration Rate (%) 42 | 4 33 89 Regions Visited 2 Branch Regions 1 Pre-discovered Areas 1 | . . 1 Known Exits Taken . | . . . Unknown Exits Taken 2 | 1 1 . Scrap Searched 2 | . . 2 Spaces Dug 13 | . . 13 Terrain Destroyed 14 | . . 14 Melee . | . . . Projectile 14 | . . 14 AOE . | . . . Terrain Rammed . | . . . Walls Destroyed . | . . . Machines Disabled . | . . . Actions | -11 -10 -10 --------- Run | Scr Mat Min Total 663 | 60 147 456 Wait 8 | . 1 7 Move 589 | 40 124 425 Hop . | . . . Pick Up 18 | 8 9 1 Fast Attach 1 | . 1 . Attach 11 | 6 4 1 Detach . | . . . Swap . | . . . Drop 4 | . 3 1 Fire 24 | 6 3 15 Melee 8 | . 2 6 Ram . | . . . Kick . | . . . Crush . | . . . Escape Stasis . | . . . Rewire . | . . . Trap . | . . . Miscellaneous . | . . . Route ------- -11/Scrapyard -10/Materials -10/Mines (discovered 1 exit: [*Mat]) History --------- Turn | Location | Event 24 | -11/Scrapyard | Discovered new exit (range 16) 68 | -11/Scrapyard | Entered Materials 115 | -10/Materials | Discovered new exit (range 10) 176 | -10/Materials | Core integrity fell below 50% 213 | -10/Materials | Entered Mines 307 | -10/Mines | Build established: Mutant 365 | -10/Mines | Met a Derelict bent on vengeance 389 | -10/Mines | Discovered new exit (range 7) 448 | -10/Mines | Learned Materials emergency access door positions 494 | -10/Mines | Learned location of Storage (-8) 609 | -10/Mines | Found a damaged Exp. Sensor Array with a note attached 613 | -10/Mines | Found Prototype Device 642 | -10/Mines | Excavation squad dispatched 642 | -10/Mines | A large section of the Mines collapsed 645 | -10/Mines | Core integrity fell below 20% 722 | -10/Mines | Destroyed by G-34 Mercenary with Small Laser Last Messages --------------- 00496_ RB-3PR(g) slips back into the shadows. 00570_ U-05 Engineer builds a Wall. 00609_ A damaged part is partially visible under some rubble. There's a note attached: "Everyone keeps telling us we should avoid high-traffic areas because that's where patrols are more likely to show up, but that doesn't do us much good if we can't spot those areas until they're on top of us... With this we can! Deliver it to Megawrench for repairs then we'll never be afraid of an ambush while sneaking around Materials again, ha." 00611_ Dropped Com. Wheel. 00613_ Acquired Prototype Device. 00642_ ALERT: Suspicious cave-in, suspected derelict activity in mines. Dispatching escorted excavation squad. Press '.', 'keypad 5' or scroll the mouse wheel to wait a turn. 00644_ as-41965 destroyed. 00646_ Acquired 10 matter. 00666_ as-51195 destroyed. 00678_ The unstable cave ceiling collapses. 00708_ Com. Wheel destroyed. 00717_ Lgt. Ion Engine destroyed. Map ----- +----------------------------------------------------+ | ###???????????????????????????????## #??????? | | #??????????????????????????????## #??????? | | #??????????????????????????????# #??????? | | #?????????????????????????????## #??????? | | #????????????????????????????## ##??????? | | ???????????????????????####?## ###???????? | | ??????????????????????## ### ##?????????? | | ?????????????????????## #??????????? | | ????????????????????## ##??????????? | | #??####??????????##### ##???????????? | | #?## ###??####??# ## ####????????????? | | #?# ### # # ###########???????????????? | | ### " # #?????????????????????????? | | ## ######### ######????????????????????? | | #"# #????????????????????? | | ## #### ##???????????????????? | | ### ## #???????????????????? | | ##?##### # #???????????????????? | | ?##????# # ##???????????????????? | | ## ###?# # #????????????????????? | | ### #################????????????????????? | | # #????????????????????????????????????? | | ## #????????????????????????????????????? | | ?### ##????????????????????????????????????? | | ???## ##???????????######????#??????????###??? | | ???## ##???????????## ;@#### #?????????# ##?? | | ??## ##??????????## t u #????##### #?? | | ### #???######## t ##g####???## #?? | | ## ##?## g g ## #????### #??? | | ### g #"# ######"##### #????? | | ### ## ### #### " #" % # #?????? | | ##?## ## #?####??# ######%#######?????? | | #???### ## ??????## ##???##"# #??????? | | #????### #### ????## ###??#### ##??????? | | #???## ##??? #???# ## #?## #???????? | | ????####?????#???# ### #???????? | | ?????????????????### ##???????? | | ??????????????????## ## #????????? | | ???????????????????# ### ##????????? | | # ????????????????????## ##?######?????????? | | ? ?????????????????????###?????????????????? | | ???????????????????????????????????????????????? | | ???????????????????????????????????????????????? | | ???????????????????????????????????????????????? | | ???????????????????????????????????????????????? | | | | | | | | | | | +----------------------------------------------------+ Best States ------------- Heat Dissipation 25 Energy Generation 10 Energy Capacity 125 Matter Stores 300 Matter Capacity 300 Sight Range 18 Terrain Scan Density 10 Evasion (%) 44 Item Schematics ----------------- None Robot Schematics ------------------ None Fabricated ------------ Nothing Alien Tech Used ----------------- None Achievements -------------- None Challenges ------------ None Game ------ Seed MeleeCoreBooster Manual? 0 Play Time 00:17:07 Cumulative 61.5 hours Start 2021.02.15 @ 18:50:09 End 2021.02.15 @ 19:16:04 Sessions 1 Manual Loads 0 Difficulty Rogue Special Mode None Game No. 26 Rogue 23 Adventurer 3 Explorer 0 Win Type - Total 0 Types 0/0/0/0/0/0/0/0/0 Lore% 15 Gallery% 36 Achievement% 24 Wizard Run 0 Options --------- ASCII 0 Keyboard 0 Movement Mouse Keybinds 0 Fullscreen 1 Font 18/SmallcapsGlow Map View 76x50 Tactical HUD 1 Map Filters NONE Filters NONE Steam X RUN: 1dc1bc76-3219-4813-a255-8323a236d135